{"text_format":"1","workbook":"xlsx","n_sheets":7,"sheets":["Instrukcja","I - Dane podstawowe","II - Komitet Audytu","III - Komitet Ryzyka","IV - Komitet Nominacji","V - Komitet Wynagrodzeń","Słownik"],"not_rendered":{"charts":0,"images":0,"macros":1,"external_links":0,"defined_names":3,"comments":0,"pivot_tables":0},"unopened":[],"bounds":{"document_bytes":16777216,"sheet_cells":100000,"rows_first":2000,"rows_last":500,"rows_between":2000,"halvings":0,"cell_chars":16384,"cell_head_chars":4096},"cells_cut":0,"cells_raw":0,"read":"whole","date_system":"1900"}

{"sheet":"Instrukcja","index":0,"n_rows":6,"n_cols":1,"rows_kept":6,"cut":false,"hidden":false,"merged":[]}
["Instrukcja wykorzystania formularza"]
["Niniejszy formularz przeznaczony jest do oceny zbiorowej odpowiedniości członków komitetu audytu zgodnie z metodyką oceny przyjętą przez Komisję Nadzoru Finansowego. Formularz umożliwia sprawną weryfikację spełniania przez komitet audytu kryteriów oceny."]
["Wypełnianie formularza należy zacząć od wprowadzenia w zakładce „I – Dane podstawowe” informacji na temat podmiotu przeprowadzającego ocenę, daty oceny oraz daty poprzeniej oceny, a także imion i nazwisk członków rady nadzorczej i informacji o ich przynależności do poszczególnych komitetów."]
["UWAGA: Wypełnienie dalszych zakładek możliwe jest dopiero po wypełnieniu pól określających przynależnośc członków rady nadzorczej do komitetów."]
["W zakładkach II-V należy wypełnić wiersze odpowiadające poszczególnym kryteriom, zgodnie z wynikami oceny indywidualnej, dla poszczególnych członków komitetów."]
["Po wypełnieniu wszystkich pól należy odczytać informację na temat spełniania wymogów w ostatniej kolumnie w zakładkach II-V. Jeżeli we wszystkich wierszach pojawia się sformułowanie „spełnia”, wynik oceny zbiorowej jest pozytywny. Jeżeli w co najmniej jednym polu pojawia się sformułowanie „nie spełnia”, wynik oceny jest w tym zakresie negatywny, a podmiot powinien podjąć odpowiednie działania mające na celu usunięcie nieprawidłowości."]

{"sheet":"I - Dane podstawowe","index":1,"n_rows":21,"n_cols":6,"rows_kept":21,"cut":false,"hidden":false,"merged":[[0,0,0,1],[1,0,1,1],[7,2,7,5]]}
["Zbiorcza ocena odpowiedniości komitetów"]
["Część I - Dane podstawowe"]
[]
["Podmiot:","(nazwa podmiotu)"]
["Data oceny:","(data oceny)"]
[]
["Data poprzedniej oceny:","(data poprzedniej oceny)"]
[null,null,"Komitety ds.:"]
["Skład rady nadzorczej","Imię i nzawisko","Audytu","Ryzyka","Nominacji","Wynagrodzeń"]
["Przewodniczący:","(osoba 1)"]
[null,"(osoba 2)"]
[null,"(osoba 3)"]
[null,"(osoba 4)"]
[null,"(osoba 5)"]
[null,"(osoba 6)"]
[null,"(osoba 7)"]
[null,"(osoba 8)"]
[null,"(osoba 9)"]
[null,"(osoba 10)"]
[]
["Uwagi:"]

{"sheet":"II - Komitet Audytu","index":2,"n_rows":20,"n_cols":14,"rows_kept":20,"cut":false,"hidden":false,"merged":[[11,12,14,12],[6,12,6,13]]}
["Zbiorcza ocena odpowiedniości"]
["Część II - Komitet Audytu"]
["Podmiot:"]
[{"$f":"'I - Dane podstawowe'!B4","v":"(nazwa podmiotu)"}]
["Data oceny:"]
[{"$f":"'I - Dane podstawowe'!B5","v":"(data oceny)"}]
[null,{"$f":"'I - Dane podstawowe'!B10","v":"(osoba 1)"},{"$f":"'I - Dane podstawowe'!B11","v":"(osoba 2)"},{"$f":"'I - Dane podstawowe'!B12","v":"(osoba 3)"},{"$f":"'I - Dane podstawowe'!B13","v":"(osoba 4)"},{"$f":"'I - Dane podstawowe'!B14","v":"(osoba 5)"},{"$f":"'I - Dane podstawowe'!B15","v":"(osoba 6)"},{"$f":"'I - Dane podstawowe'!B16","v":"(osoba 7)"},{"$f":"'I - Dane podstawowe'!B17","v":"(osoba 8)"},{"$f":"'I - Dane podstawowe'!B18","v":"(osoba 9)"},{"$f":"'I - Dane podstawowe'!B19","v":"(osoba 10)"},null,"Podsumowanie"]
["Czy jest członkiem",{"$f":"IFERROR(VALUE(LEFT('I - Dane podstawowe'!C10,1)),0)","v":0},{"$f":"IFERROR(VALUE(LEFT('I - Dane podstawowe'!C11,1)),0)","v":0},{"$f":"IFERROR(VALUE(LEFT('I - Dane podstawowe'!C12,1)),0)","v":0},{"$f":"IFERROR(VALUE(LEFT('I - Dane podstawowe'!C13,1)),0)","v":0},{"$f":"IFERROR(VALUE(LEFT('I - Dane podstawowe'!C14,1)),0)","v":0},{"$f":"IFERROR(VALUE(LEFT('I - Dane podstawowe'!C15,1)),0)","v":0},{"$f":"IFERROR(VALUE(LEFT('I - Dane podstawowe'!C16,1)),0)","v":0},{"$f":"IFERROR(VALUE(LEFT('I - Dane podstawowe'!C17,1)),0)","v":0},{"$f":"IFERROR(VALUE(LEFT('I - Dane podstawowe'!C18,1)),0)","v":0},{"$f":"IFERROR(VALUE(LEFT('I - Dane podstawowe'!C19,1)),0)","v":0}]
["Niezależność:",null,null,null,null,null,null,null,null,null,null,null,"Większość członków, w tym przewodniczący, powinna być niezależna",{"$f":"IFERROR(IF(AND(2*COUNTIF(B9:K9,\"1-Tak\")>=COUNTA(B9:K9),INDEX(B9:K9,1,MATCH(2,B8:K8,0))=\"1-Tak\"),\"Spełnia\",\"Nie spełnia\"),\"Nie spełnia\")","v":"Nie spełnia"}]
["Wiedza w zakresie rachunkowości:"]
["Umiejętności w zakresie rachunkowości:"]
["Łącznie wiedza i umiejętności w zakresie rachunkowości:",{"$f":"IF(AND(B10=\"1-Tak\",B11=\"1-Tak\"),\"1-Tak\",\"0-Nie\")","v":"0-Nie"},{"$f":"IF(AND(C10=\"1-Tak\",C11=\"1-Tak\"),\"1-Tak\",\"0-Nie\")","v":"0-Nie"},{"$f":"IF(AND(D10=\"1-Tak\",D11=\"1-Tak\"),\"1-Tak\",\"0-Nie\")","v":"0-Nie"},{"$f":"IF(AND(E10=\"1-Tak\",E11=\"1-Tak\"),\"1-Tak\",\"0-Nie\")","v":"0-Nie"},{"$f":"IF(AND(F10=\"1-Tak\",F11=\"1-Tak\"),\"1-Tak\",\"0-Nie\")","v":"0-Nie"},{"$f":"IF(AND(G10=\"1-Tak\",G11=\"1-Tak\"),\"1-Tak\",\"0-Nie\")","v":"0-Nie"},"0-Nie","0-Nie","0-Nie","0-Nie",null,"Co najmniej jeden członek powinien posiadać wiedzę i umiejętności w co najmniej jednej z dziedzin",{"$f":"IF(COUNTIF(B12:K12,\"1-Tak\")>=1,\"Spełnia\",\"Nie spełnia\")","v":"Nie spełnia"}]
["Wiedza w zakresie badania sprawozdań finansowych:"]
["Umiejętności w zakresie badania sprawozdań finansowych:"]
["Łącznie wiedza i umiejętności w zakresie badania sprawozdań finansowych:",{"$f":"IF(AND(B13=\"1-Tak\",B14=\"1-Tak\"),\"1-Tak\",\"0-Nie\")","v":"0-Nie"},{"$f":"IF(AND(C13=\"1-Tak\",C14=\"1-Tak\"),\"1-Tak\",\"0-Nie\")","v":"0-Nie"},{"$f":"IF(AND(D13=\"1-Tak\",D14=\"1-Tak\"),\"1-Tak\",\"0-Nie\")","v":"0-Nie"},{"$f":"IF(AND(E13=\"1-Tak\",E14=\"1-Tak\"),\"1-Tak\",\"0-Nie\")","v":"0-Nie"},{"$f":"IF(AND(F13=\"1-Tak\",F14=\"1-Tak\"),\"1-Tak\",\"0-Nie\")","v":"0-Nie"},{"$f":"IF(AND(G13=\"1-Tak\",G14=\"1-Tak\"),\"1-Tak\",\"0-Nie\")","v":"0-Nie"},{"$f":"IF(AND(H13=\"1-Tak\",H14=\"1-Tak\"),\"1-Tak\",\"0-Nie\")","v":"0-Nie"},{"$f":"IF(AND(I13=\"1-Tak\",I14=\"1-Tak\"),\"1-Tak\",\"0-Nie\")","v":"0-Nie"},{"$f":"IF(AND(J13=\"1-Tak\",J14=\"1-Tak\"),\"1-Tak\",\"0-Nie\")","v":"0-Nie"},{"$f":"IF(AND(K13=\"1-Tak\",K14=\"1-Tak\"),\"1-Tak\",\"0-Nie\")","v":"0-Nie"},null,null,{"$f":"IF(COUNTIF(B15:K15,\"1-Tak\")>=1,\"Spełnia\",\"Nie spełnia\")","v":"Nie spełnia"}]
["Wiedza z zakresu branży, w której działa JZP:"]
["Umiejętności z zakresu branży, w której działa JZP:"]
["Łącznie wiedza i umiejętności z zakresu branży, w której działa JZP:",{"$f":"IF(AND(B16=\"1-Tak\",B17=\"1-Tak\"),\"1-Tak\",\"0-Nie\")","v":"0-Nie"},{"$f":"IF(AND(C16=\"1-Tak\",C17=\"1-Tak\"),\"1-Tak\",\"0-Nie\")","v":"0-Nie"},{"$f":"IF(AND(D16=\"1-Tak\",D17=\"1-Tak\"),\"1-Tak\",\"0-Nie\")","v":"0-Nie"},{"$f":"IF(AND(E16=\"1-Tak\",E17=\"1-Tak\"),\"1-Tak\",\"0-Nie\")","v":"0-Nie"},{"$f":"IF(AND(F16=\"1-Tak\",F17=\"1-Tak\"),\"1-Tak\",\"0-Nie\")","v":"0-Nie"},{"$f":"IF(AND(G16=\"1-Tak\",G17=\"1-Tak\"),\"1-Tak\",\"0-Nie\")","v":"0-Nie"},{"$f":"IF(AND(H16=\"1-Tak\",H17=\"1-Tak\"),\"1-Tak\",\"0-Nie\")","v":"0-Nie"},{"$f":"IF(AND(I16=\"1-Tak\",I17=\"1-Tak\"),\"1-Tak\",\"0-Nie\")","v":"0-Nie"},{"$f":"IF(AND(J16=\"1-Tak\",J17=\"1-Tak\"),\"1-Tak\",\"0-Nie\")","v":"0-Nie"},{"$f":"IF(AND(K16=\"1-Tak\",K17=\"1-Tak\"),\"1-Tak\",\"0-Nie\")","v":"0-Nie"},null,"Co najmniej jeden członek powinien posiadać  wiedzę i umiejętności",{"$f":"IF(COUNTIF(B18:K18,\"1-Tak\")>=1,\"Spełnia\",\"Nie spełnia\")","v":"Nie spełnia"}]
[]
["Uwagi:",null,null,null,null,null,null,null,null,null,null,null,"Podsumowanie",{"$f":"IF(AND(N9=\"Spełnia\",OR(N12=\"Spełnia\",N15=\"Spełnia\"),N18=\"Spełnia\"),\"Spełnia\",\"Nie spełnia\")","v":"Nie spełnia"}]

{"sheet":"III - Komitet Ryzyka","index":3,"n_rows":12,"n_cols":14,"rows_kept":12,"cut":false,"hidden":false,"merged":[[6,12,6,13]]}
["Zbiorcza ocena odpowiedniości"]
["Część III - Komitet Ryzyka"]
["Podmiot:"]
[{"$f":"'I - Dane podstawowe'!B4","v":"(nazwa podmiotu)"}]
["Data oceny:"]
[{"$f":"'I - Dane podstawowe'!B5","v":"(data oceny)"}]
[null,{"$f":"'I - Dane podstawowe'!B10","v":"(osoba 1)"},{"$f":"'I - Dane podstawowe'!B11","v":"(osoba 2)"},{"$f":"'I - Dane podstawowe'!B12","v":"(osoba 3)"},{"$f":"'I - Dane podstawowe'!B13","v":"(osoba 4)"},{"$f":"'I - Dane podstawowe'!B14","v":"(osoba 5)"},{"$f":"'I - Dane podstawowe'!B15","v":"(osoba 6)"},{"$f":"'I - Dane podstawowe'!B16","v":"(osoba 7)"},{"$f":"'I - Dane podstawowe'!B17","v":"(osoba 8)"},{"$f":"'I - Dane podstawowe'!B18","v":"(osoba 9)"},{"$f":"'I - Dane podstawowe'!B19","v":"(osoba 10)"},null,"Podsumowanie"]
["Czy jest członkiem",{"$f":"IFERROR(VALUE(LEFT('I - Dane podstawowe'!D10,1)),0)","v":0},{"$f":"IFERROR(VALUE(LEFT('I - Dane podstawowe'!D11,1)),0)","v":0},{"$f":"IFERROR(VALUE(LEFT('I - Dane podstawowe'!D12,1)),0)","v":0},{"$f":"IFERROR(VALUE(LEFT('I - Dane podstawowe'!D13,1)),0)","v":0},{"$f":"IFERROR(VALUE(LEFT('I - Dane podstawowe'!D14,1)),0)","v":0},{"$f":"IFERROR(VALUE(LEFT('I - Dane podstawowe'!D15,1)),0)","v":0},{"$f":"IFERROR(VALUE(LEFT('I - Dane podstawowe'!D16,1)),0)","v":0},{"$f":"IFERROR(VALUE(LEFT('I - Dane podstawowe'!D17,1)),0)","v":0},{"$f":"IFERROR(VALUE(LEFT('I - Dane podstawowe'!D18,1)),0)","v":0},{"$f":"IFERROR(VALUE(LEFT('I - Dane podstawowe'!D19,1)),0)","v":0}]
["Niezależność:",null,null,null,null,null,null,null,null,null,null,null,"W instytucjach o znaczeniu systemowym większość członków, w tym przewodniczący, powinna być niezależna",{"$f":"IFERROR(IF(AND(2*COUNTIF(B9:K9,\"1-Tak\")>COUNTA(B9:K9),INDEX(B9:K9,1,MATCH(2,B8:K8,0))=\"1-Tak\"),\"Spełnia\",\"Nie spełnia\"),\"Nie spełnia\")","v":"Nie spełnia"}]
["Wiedza fachowa oraz umiejętności w odniesieniu do praktyk dotyczących zarządzania ryzykiem i mechanizmów kontrolnych.",null,null,null,null,null,null,null,null,null,null,null,"Członkowie powinni posiadać indywidualnie i zbiorowo odpowiednią wiedzę fachową oraz umiejętności w odniesieniu do praktyk dotyczących zarządzania ryzykiem i mechanizmów kontrolnych.",{"$f":"IFERROR(IF(AND(COUNTA(B10:K10)>0,COUNTIF(B10:K10,\"1-Tak\")=COUNTA(B10:K10)),\"Spełnia\",\"Nie spełnia\"),\"Nie spełnia\")","v":"Nie spełnia"}]
[]
["Uwagi:",null,null,null,null,null,null,null,null,null,null,null,"Podsumowanie",{"$f":"IF(AND(N9=\"Spełnia\",N10=\"Spełnia\"),\"Spełnia\",\"Nie spełnia\")","v":"Nie spełnia"}]

{"sheet":"IV - Komitet Nominacji","index":4,"n_rows":12,"n_cols":14,"rows_kept":12,"cut":false,"hidden":false,"merged":[[6,12,6,13]]}
["Zbiorcza ocena odpowiedniości"]
["Część IIV- Komitet Nominacji"]
["Podmiot:"]
[{"$f":"'I - Dane podstawowe'!B4","v":"(nazwa podmiotu)"}]
["Data oceny:"]
[{"$f":"'I - Dane podstawowe'!B5","v":"(data oceny)"}]
[null,{"$f":"'I - Dane podstawowe'!B10","v":"(osoba 1)"},{"$f":"'I - Dane podstawowe'!B11","v":"(osoba 2)"},{"$f":"'I - Dane podstawowe'!B12","v":"(osoba 3)"},{"$f":"'I - Dane podstawowe'!B13","v":"(osoba 4)"},{"$f":"'I - Dane podstawowe'!B14","v":"(osoba 5)"},{"$f":"'I - Dane podstawowe'!B15","v":"(osoba 6)"},{"$f":"'I - Dane podstawowe'!B16","v":"(osoba 7)"},{"$f":"'I - Dane podstawowe'!B17","v":"(osoba 8)"},{"$f":"'I - Dane podstawowe'!B18","v":"(osoba 9)"},{"$f":"'I - Dane podstawowe'!B19","v":"(osoba 10)"},null,"Podsumowanie"]
["Czy jest członkiem",{"$f":"IFERROR(VALUE(LEFT('I - Dane podstawowe'!E10,1)),0)","v":0},{"$f":"IFERROR(VALUE(LEFT('I - Dane podstawowe'!E11,1)),0)","v":0},{"$f":"IFERROR(VALUE(LEFT('I - Dane podstawowe'!E12,1)),0)","v":0},{"$f":"IFERROR(VALUE(LEFT('I - Dane podstawowe'!E13,1)),0)","v":0},{"$f":"IFERROR(VALUE(LEFT('I - Dane podstawowe'!E14,1)),0)","v":0},{"$f":"IFERROR(VALUE(LEFT('I - Dane podstawowe'!E15,1)),0)","v":0},{"$f":"IFERROR(VALUE(LEFT('I - Dane podstawowe'!E16,1)),0)","v":0},{"$f":"IFERROR(VALUE(LEFT('I - Dane podstawowe'!E17,1)),0)","v":0},{"$f":"IFERROR(VALUE(LEFT('I - Dane podstawowe'!E18,1)),0)","v":0},{"$f":"IFERROR(VALUE(LEFT('I - Dane podstawowe'!E19,1)),0)","v":0}]
["Niezależność:",null,null,null,null,null,null,null,null,null,null,null,"W instytucjach o znaczeniu systemowym większość członków, w tym przewodniczący, powinna być niezależna",{"$f":"IFERROR(IF(AND(2*COUNTIF(B9:K9,\"1-Tak\")>COUNTA(B9:K9),INDEX(B9:K9,1,MATCH(2,B8:K8,0))=\"1-Tak\"),\"Spełnia\",\"Nie spełnia\"),\"Nie spełnia\")","v":"Nie spełnia"}]
["Wiedza fachowa oraz umiejętności w odniesieniu do procesu selekcji i wymagań dotyczących odpowiedniości, jak określono w dyrektywie 2013/36/UE.",null,null,null,null,null,null,null,null,null,null,null,"Członkowie powinni posiadać indywidualnie i zbiorowo odpowiednią wiedzę fachową oraz umiejętności w odniesieniu do procesu selekcji i wymagań dotyczących odpowiedniości, jak określono w dyrektywie 2013/36/UE.",{"$f":"IFERROR(IF(AND(COUNTA(B10:K10)>0,COUNTIF(B10:K10,\"1-Tak\")=COUNTA(B10:K10)),\"Spełnia\",\"Nie spełnia\"),\"Nie spełnia\")","v":"Nie spełnia"}]
[]
["Uwagi:",null,null,null,null,null,null,null,null,null,null,null,"Podsumowanie",{"$f":"IF(AND(N9=\"Spełnia\",N10=\"Spełnia\"),\"Spełnia\",\"Nie spełnia\")","v":"Nie spełnia"}]

{"sheet":"V - Komitet Wynagrodzeń","index":5,"n_rows":12,"n_cols":14,"rows_kept":12,"cut":false,"hidden":false,"merged":[[6,12,6,13]]}
["Zbiorcza ocena odpowiedniości"]
["Część V - Komitet Wynagrodzeń"]
["Podmiot:"]
[{"$f":"'I - Dane podstawowe'!B4","v":"(nazwa podmiotu)"}]
["Data oceny:"]
[{"$f":"'I - Dane podstawowe'!B5","v":"(data oceny)"}]
[null,{"$f":"'I - Dane podstawowe'!B10","v":"(osoba 1)"},{"$f":"'I - Dane podstawowe'!B11","v":"(osoba 2)"},{"$f":"'I - Dane podstawowe'!B12","v":"(osoba 3)"},{"$f":"'I - Dane podstawowe'!B13","v":"(osoba 4)"},{"$f":"'I - Dane podstawowe'!B14","v":"(osoba 5)"},{"$f":"'I - Dane podstawowe'!B15","v":"(osoba 6)"},{"$f":"'I - Dane podstawowe'!B16","v":"(osoba 7)"},{"$f":"'I - Dane podstawowe'!B17","v":"(osoba 8)"},{"$f":"'I - Dane podstawowe'!B18","v":"(osoba 9)"},{"$f":"'I - Dane podstawowe'!B19","v":"(osoba 10)"},null,"Podsumowanie"]
["Czy jest członkiem",{"$f":"IFERROR(VALUE(LEFT('I - Dane podstawowe'!F10,1)),0)","v":0},{"$f":"IFERROR(VALUE(LEFT('I - Dane podstawowe'!F11,1)),0)","v":0},{"$f":"IFERROR(VALUE(LEFT('I - Dane podstawowe'!F12,1)),0)","v":0},{"$f":"IFERROR(VALUE(LEFT('I - Dane podstawowe'!F13,1)),0)","v":0},{"$f":"IFERROR(VALUE(LEFT('I - Dane podstawowe'!F14,1)),0)","v":0},{"$f":"IFERROR(VALUE(LEFT('I - Dane podstawowe'!F15,1)),0)","v":0},{"$f":"IFERROR(VALUE(LEFT('I - Dane podstawowe'!F16,1)),0)","v":0},{"$f":"IFERROR(VALUE(LEFT('I - Dane podstawowe'!F17,1)),0)","v":0},{"$f":"IFERROR(VALUE(LEFT('I - Dane podstawowe'!F18,1)),0)","v":0},{"$f":"IFERROR(VALUE(LEFT('I - Dane podstawowe'!F19,1)),0)","v":0}]
["Niezależność:",null,null,null,null,null,null,null,null,null,null,null,"W instytucjach o znaczeniu systemowym większość członków, w tym przewodniczący, powinna być niezależna",{"$f":"IFERROR(IF(AND(2*COUNTIF(B9:K9,\"1-Tak\")>COUNTA(B9:K9),INDEX(B9:K9,1,MATCH(2,B8:K8,0))=\"1-Tak\"),\"Spełnia\",\"Nie spełnia\"),\"Nie spełnia\")","v":"Nie spełnia"}]
["Wiedza i doświadczenie zawodowe w obszarze polityki i praktyki w zakresie wynagrodzeń oraz zarządzania ryzykiem i kontroli ryzyka, a ściślej w zakresie mechanizmu dostosowywania struktury wynagrodzeń do profilu ryzyka i kapitału instytucji.",null,null,null,null,null,null,null,null,null,null,null,"Członkowie powinni posiadać indywidualnie i zbiorowo odpowiednią wiedzę i doświadczenie zawodowe w obszarze polityki i praktyki w zakresie wynagrodzeń oraz zarządzania ryzykiem i kontroli ryzyka, a ściślej w zakresie mechanizmu dostosowywania struktury wynagrodzeń do profilu ryzyka i kapitału instytucji.",{"$f":"IFERROR(IF(AND(COUNTA(B10:K10)>0,COUNTIF(B10:K10,\"1-Tak\")=COUNTA(B10:K10)),\"Spełnia\",\"Nie spełnia\"),\"Nie spełnia\")","v":"Nie spełnia"}]
[]
["Uwagi:",null,null,null,null,null,null,null,null,null,null,null,"Podsumowanie",{"$f":"IF(AND(N9=\"Spełnia\",N10=\"Spełnia\"),\"Spełnia\",\"Nie spełnia\")","v":"Nie spełnia"}]

{"sheet":"Słownik","index":6,"n_rows":7,"n_cols":9,"rows_kept":7,"cut":false,"hidden":true,"merged":[]}
["5-poziomowy",null,null,"2-poziomowy",null,null,"Tak/Nie",null,"Udział w komitecie"]
["Tekst","Wartość"]
["0 - Brak",0,null,"0 - Nie spełnia",0,null,"0-Nie",null,"0 - Nie"]
["1 - Podstawowy",1,null,"1 - Spełnia",1,null,"1-Tak",null,"1 - Członek"]
["2 - Średni",2,null,null,null,null,null,null,"2 - Przewodniczący"]
["3 - Wysoki",3]
["4 - B. wysoki",4]